[Event "*** SCC Grand Prix: Titled Tuesday Blitz"]
[Site "Chess.com"]
[Date "2020.09.08"]
[Round "5"]
[White "Agibileg"]
[Black "tteshan"]
[Result "1-0"]
[WhiteElo "2582"]
[BlackElo "2405"]
[TimeControl "180+1"]
[EndTime "10:55:35 PDT"]
[Termination "Agibileg won by resignation"]

1. d4 {[%clk 0:03:00.9]} 1... Nf6 {[%clk 0:02:59.1]} 2. c4 {[%clk 0:03:00.6]}
2... e6 {[%clk 0:02:59.1]} 3. Nc3 {[%clk 0:02:59.7]} 3... c5 {[%clk 0:02:59.1]}
4. d5 {[%clk 0:02:59.3]} 4... exd5 {[%clk 0:02:59.7]} 5. cxd5 {[%clk 0:03:00.2]}
5... d6 {[%clk 0:02:59.2]} 6. e4 {[%clk 0:03:00.2]} 6... g6 {[%clk 0:02:57.2]}
7. h3 {[%clk 0:03:00.5]} 7... Bg7 {[%clk 0:02:53.8]} 8. Nf3 {[%clk 0:03:00.7]}
8... O-O {[%clk 0:02:50.7]} 9. Bd3 {[%clk 0:03:01.1]} 9... Re8 {[%clk 0:02:45]}
10. O-O {[%clk 0:03:00.8]} 10... Nbd7 {[%clk 0:02:44.9]} 11. Bf4 {[%clk
0:02:56.6]} 11... c4 {[%clk 0:02:39]} 12. Bc2 {[%clk 0:02:52.4]} 12... Nc5
{[%clk 0:02:38.2]} 13. Re1 {[%clk 0:02:42.4]} 13... Rb8 {[%clk 0:02:02.1]} 14.
Qd2 {[%clk 0:02:19.6]} 14... b5 {[%clk 0:01:59.2]} 15. Nd4 {[%clk 0:02:19.4]}
15... b4 {[%clk 0:01:49.2]} 16. Nc6 {[%clk 0:02:16.1]} 16... bxc3 {[%clk
0:01:24.7]} 17. bxc3 {[%clk 0:02:14.4]} 17... Qc7 {[%clk 0:01:16]} 18. e5 {[%clk
0:02:12.7]} 18... Nxd5 {[%clk 0:00:39.3]} 19. Qxd5 {[%clk 0:02:01]} 19... Bb7
{[%clk 0:00:36.6]} 20. e6 {[%clk 0:00:52.6]} 20... Bxc6 {[%clk 0:00:21.2]} 21.
Qxc5 {[%clk 0:00:49]} 21... dxc5 {[%clk 0:00:10.1]} 22. Bxc7 {[%clk 0:00:49.9]}
22... Rb7 {[%clk 0:00:08.9]} 23. Be5 {[%clk 0:00:47.3]} 23... Rxe6 {[%clk
0:00:06.8]} 24. Bxg7 {[%clk 0:00:45.5]} 24... Re5 {[%clk 0:00:05.7]} 25. Bxe5
{[%clk 0:00:44.4]} 1-0

[Event "*** SCC Grand Prix: Titled Tuesday Blitz"]
[Site "Chess.com"]
[Date "2020.09.08"]
[Round "5"]
[White "Gorin_Leonid"]
[Black "ExcitingTrap"]
[Result "1-0"]
[WhiteElo "2619"]
[BlackElo "2285"]
[TimeControl "180+1"]
[EndTime "10:55:36 PDT"]
[Termination "Gorin_Leonid won by resignation"]

1. e4 {[%clk 0:03:00.9]} 1... e6 {[%clk 0:02:59.7]} 2. d4 {[%clk 0:02:59.9]}
2... d5 {[%clk 0:02:59.2]} 3. Nd2 {[%clk 0:03:00.4]} 3... Nf6 {[%clk 0:02:57.6]}
4. e5 {[%clk 0:02:59.9]} 4... Nfd7 {[%clk 0:02:58.1]} 5. f4 {[%clk 0:03:00.3]}
5... c5 {[%clk 0:02:58.2]} 6. c3 {[%clk 0:03:00.4]} 6... Nc6 {[%clk 0:02:58.7]}
7. Ndf3 {[%clk 0:03:00.4]} 7... Be7 {[%clk 0:02:56.5]} 8. g3 {[%clk 0:02:58.5]}
8... O-O {[%clk 0:02:56.3]} 9. Bh3 {[%clk 0:02:59]} 9... b5 {[%clk 0:02:52]} 10.
Ne2 {[%clk 0:02:57.5]} 10... b4 {[%clk 0:02:46.8]} 11. O-O {[%clk 0:02:56.7]}
11... Qb6 {[%clk 0:02:45.9]} 12. Kh1 {[%clk 0:02:52.8]} 12... f5 {[%clk
0:02:43]} 13. g4 {[%clk 0:02:47.2]} 13... Ba6 {[%clk 0:02:03.2]} 14. gxf5 {[%clk
0:02:45.6]} 14... exf5 {[%clk 0:02:02.8]} 15. Be3 {[%clk 0:02:42]} 15... bxc3
{[%clk 0:02:01.7]} 16. bxc3 {[%clk 0:02:40.9]} 16... Qb2 {[%clk 0:01:58]} 17.
Rf2 {[%clk 0:02:30.4]} 17... Bxe2 {[%clk 0:01:43.7]} 18. Rxe2 {[%clk 0:02:30.2]}
18... Qxc3 {[%clk 0:01:43.7]} 19. Rc1 {[%clk 0:02:25.1]} 19... Qa3 {[%clk
0:01:40.3]} 20. dxc5 {[%clk 0:02:08.9]} 20... d4 {[%clk 0:01:29.7]} 21. Nxd4
{[%clk 0:02:03.6]} 21... Nxd4 {[%clk 0:01:26.6]} 22. Qxd4 {[%clk 0:01:58.2]}
22... Rad8 {[%clk 0:01:18.1]} 23. Qc3 {[%clk 0:01:48.7]} 23... Qa6 {[%clk
0:01:14.3]} 24. Qc4+ {[%clk 0:01:48.3]} 24... Qxc4 {[%clk 0:01:14.3]} 25. Rxc4
{[%clk 0:01:48.8]} 25... Rc8 {[%clk 0:01:09.1]} 26. Rec2 {[%clk 0:01:40.8]}
26... g6 {[%clk 0:01:04.7]} 27. Bg2 {[%clk 0:01:38.6]} 27... Rfd8 {[%clk
0:01:03.8]} 28. Bd5+ {[%clk 0:01:34.1]} 28... Kg7 {[%clk 0:01:00.4]} 29. c6
{[%clk 0:01:24.6]} 29... Nb6 {[%clk 0:00:59.5]} 30. Bxb6 {[%clk 0:01:24.2]}
30... axb6 {[%clk 0:00:55.3]} 31. Be6 {[%clk 0:01:24.5]} 31... Rc7 {[%clk
0:00:52.4]} 32. Bd7 {[%clk 0:01:23.6]} 32... Ra8 {[%clk 0:00:49.7]} 33. a4
{[%clk 0:01:22.5]} 33... Bc5 {[%clk 0:00:47.1]} 34. Kg2 {[%clk 0:01:18.9]} 34...
Rca7 {[%clk 0:00:40.6]} 35. a5 {[%clk 0:01:10.1]} 35... Rc7 {[%clk 0:00:36.5]}
36. axb6 {[%clk 0:01:07.4]} 36... Bxb6 {[%clk 0:00:37.4]} 37. Rb4 {[%clk
0:01:06]} 37... Be3 {[%clk 0:00:31]} 38. Rb7 {[%clk 0:01:03.6]} 38... Ra7 {[%clk
0:00:29.8]} 39. Rxc7 {[%clk 0:01:01.4]} 39... Rxc7 {[%clk 0:00:29.3]} 40. Kf3
{[%clk 0:01:01.8]} 40... Bc5 {[%clk 0:00:26.6]} 1-0

[Event "*** SCC Grand Prix: Titled Tuesday Blitz"]
[Site "Chess.com"]
[Date "2020.09.08"]
[Round "5"]
[White "RobPeresian"]
[Black "LawrenceTrent"]
[Result "0-1"]
[WhiteElo "2362"]
[BlackElo "2537"]
[TimeControl "180+1"]
[EndTime "10:55:38 PDT"]
[Termination "LawrenceTrent won by resignation"]

1. Nf3 {[%clk 0:03:00.2]} 1... c5 {[%clk 0:02:53.2]} 2. c4 {[%clk 0:02:59]} 2...
Nc6 {[%clk 0:02:50.8]} 3. Nc3 {[%clk 0:02:57.8]} 3... e5 {[%clk 0:02:45.2]} 4.
g3 {[%clk 0:02:57.2]} 4... g6 {[%clk 0:02:44.7]} 5. Bg2 {[%clk 0:02:57.3]} 5...
Bg7 {[%clk 0:02:45.6]} 6. d3 {[%clk 0:02:57.7]} 6... Nge7 {[%clk 0:02:46.5]} 7.
Nd2 {[%clk 0:02:58.2]} 7... O-O {[%clk 0:02:47.3]} 8. Nf1 {[%clk 0:02:58.8]}
8... d6 {[%clk 0:02:46.9]} 9. Ne3 {[%clk 0:02:59.3]} 9... f5 {[%clk 0:02:46.6]}
10. Ned5 {[%clk 0:02:55.3]} 10... Nxd5 {[%clk 0:02:45.6]} 11. Nxd5 {[%clk
0:02:54.7]} 11... Be6 {[%clk 0:02:43.6]} 12. Rb1 {[%clk 0:02:53]} 12... Rb8
{[%clk 0:02:38.4]} 13. a3 {[%clk 0:02:52]} 13... b5 {[%clk 0:02:37.4]} 14. O-O
{[%clk 0:02:41.8]} 14... b4 {[%clk 0:02:33.2]} 15. axb4 {[%clk 0:02:33.1]} 15...
Nxb4 {[%clk 0:02:32.5]} 16. Qa4 {[%clk 0:02:30]} 16... a5 {[%clk 0:02:29]} 17.
Bd2 {[%clk 0:02:28]} 17... Bxd5 {[%clk 0:02:27.1]} 18. cxd5 {[%clk 0:02:27.3]}
18... Kh8 {[%clk 0:02:25.1]} 19. Bc3 {[%clk 0:02:15.3]} 19... Qb6 {[%clk
0:02:17.9]} 20. Ra1 {[%clk 0:02:12.9]} 20... Ra8 {[%clk 0:02:05.8]} 21. Ra3
{[%clk 0:02:13]} 21... Rfb8 {[%clk 0:01:59.2]} 22. Rfa1 {[%clk 0:02:09.8]} 22...
h5 {[%clk 0:01:59]} 23. Qb3 {[%clk 0:02:06.2]} 23... Kh7 {[%clk 0:01:56.4]} 24.
h3 {[%clk 0:01:55.9]} 24... Qc7 {[%clk 0:01:43.8]} 25. g4 {[%clk 0:01:41.8]}
25... Nxd3 {[%clk 0:01:38.8]} 26. Qc2 {[%clk 0:01:41.6]} 26... Nb4 {[%clk
0:01:30.9]} 27. Bxb4 {[%clk 0:01:41.2]} 27... Rxb4 {[%clk 0:01:30.8]} 28. gxf5
{[%clk 0:01:39.3]} 28... Rab8 {[%clk 0:01:24.6]} 29. fxg6+ {[%clk 0:01:37.3]}
29... Kh8 {[%clk 0:01:24]} 30. Qf5 {[%clk 0:01:36.9]} 30... Rxb2 {[%clk
0:01:18.8]} 31. Qxh5+ {[%clk 0:01:31.8]} 31... Kg8 {[%clk 0:01:18.9]} 32. Qh7+
{[%clk 0:01:31.2]} 32... Kf8 {[%clk 0:01:18.9]} 33. Rxa5 {[%clk 0:01:27.2]}
33... Rb1+ {[%clk 0:01:18.5]} 34. Kh2 {[%clk 0:01:27.2]} 34... Rxa1 {[%clk
0:01:18.4]} 35. Rxa1 {[%clk 0:01:27.2]} 35... e4 {[%clk 0:01:18.8]} 36. Rf1
{[%clk 0:01:15]} 36... Be5+ {[%clk 0:01:08.8]} 37. Kh1 {[%clk 0:01:08.7]} 37...
Qxh7 {[%clk 0:01:08.3]} 38. gxh7 {[%clk 0:01:08.2]} 38... Rb4 {[%clk 0:01:07.2]}
39. f4 {[%clk 0:01:01.6]} 39... exf3 {[%clk 0:01:01.1]} 40. Rxf3+ {[%clk
0:00:59.8]} 40... Kg7 {[%clk 0:01:00.3]} 41. Rf8 {[%clk 0:00:31.5]} 41... Kxf8
{[%clk 0:00:58.7]} 0-1

[Event "*** SCC Grand Prix: Titled Tuesday Blitz"]
[Site "Chess.com"]
[Date "2020.09.08"]
[Round "5"]
[White "Tactictic"]
[Black "shnitez"]
[Result "0-1"]
[WhiteElo "2357"]
[BlackElo "2530"]
[TimeControl "180+1"]
[EndTime "10:55:43 PDT"]
[Termination "shnitez won by resignation"]

1. e4 {[%clk 0:03:00.9]} 1... c5 {[%clk 0:02:58.7]} 2. Nf3 {[%clk 0:02:53.5]}
2... e6 {[%clk 0:02:58.3]} 3. d4 {[%clk 0:02:54.4]} 3... cxd4 {[%clk 0:02:58.9]}
4. Nxd4 {[%clk 0:02:55.3]} 4... a6 {[%clk 0:02:59.4]} 5. Bd3 {[%clk 0:02:41.6]}
5... Bc5 {[%clk 0:02:58.1]} 6. Nb3 {[%clk 0:02:39.7]} 6... Be7 {[%clk 0:02:58]}
7. Qg4 {[%clk 0:02:34.2]} 7... g6 {[%clk 0:02:57.8]} 8. Qe2 {[%clk 0:02:30.6]}
8... d6 {[%clk 0:02:57.8]} 9. Nc3 {[%clk 0:02:29.7]} 9... Nd7 {[%clk 0:02:55.4]}
10. O-O {[%clk 0:02:28.9]} 10... b6 {[%clk 0:02:50]} 11. Be3 {[%clk 0:02:28.4]}
11... Bb7 {[%clk 0:02:49.4]} 12. Rad1 {[%clk 0:02:27.6]} 12... Qc7 {[%clk
0:02:49.7]} 13. f4 {[%clk 0:02:17.3]} 13... Ngf6 {[%clk 0:02:49.4]} 14. f5
{[%clk 0:02:17.1]} 14... gxf5 {[%clk 0:02:47.9]} 15. exf5 {[%clk 0:02:15.2]}
15... Rg8 {[%clk 0:02:48.3]} 16. Rf2 {[%clk 0:02:03.1]} 16... e5 {[%clk
0:02:47.8]} 17. h3 {[%clk 0:01:29.4]} 17... d5 {[%clk 0:02:39.6]} 18. Bc1 {[%clk
0:01:18.5]} 18... e4 {[%clk 0:02:37.1]} 19. Bf4 {[%clk 0:01:16.1]} 19... Qc8
{[%clk 0:01:55.9]} 20. Re1 {[%clk 0:00:40.4]} 20... Qd8 {[%clk 0:01:40.2]} 21.
Qe3 {[%clk 0:00:39.3]} 21... Bc5 {[%clk 0:01:23.4]} 22. Nxc5 {[%clk 0:00:34.9]}
22... bxc5 {[%clk 0:01:24.3]} 23. Nxe4 {[%clk 0:00:25.2]} 23... dxe4 {[%clk
0:01:20.7]} 24. Bxe4 {[%clk 0:00:26.1]} 24... Bxe4 {[%clk 0:01:13.3]} 25. Rfe2
{[%clk 0:00:19.7]} 25... Qb6 {[%clk 0:01:01.1]} 26. Qc3 {[%clk 0:00:12.8]} 26...
Qb4 {[%clk 0:00:41.7]} 27. Qg3 {[%clk 0:00:01.9]} 27... Rxg3 {[%clk 0:00:40.4]}
0-1

[Event "*** SCC Grand Prix: Titled Tuesday Blitz"]
[Site "Chess.com"]
[Date "2020.09.08"]
[Round "5"]
[White "krasavetc"]
[Black "Witik"]
[Result "0-1"]
[WhiteElo "2346"]
[BlackElo "2695"]
[TimeControl "180+1"]
[EndTime "10:55:48 PDT"]
[Termination "Witik won on time"]

1. Nf3 {[%clk 0:03:00.9]} 1... d5 {[%clk 0:02:58.8]} 2. d4 {[%clk 0:02:59.9]}
2... e6 {[%clk 0:02:58.7]} 3. c4 {[%clk 0:03:00.8]} 3... c6 {[%clk 0:02:58.9]}
4. e3 {[%clk 0:03:01.3]} 4... Bd6 {[%clk 0:02:58.6]} 5. Nc3 {[%clk 0:03:01.5]}
5... f5 {[%clk 0:02:58.6]} 6. Be2 {[%clk 0:02:59.5]} 6... Nf6 {[%clk 0:02:58.7]}
7. Qb3 {[%clk 0:02:58.2]} 7... O-O {[%clk 0:02:57]} 8. Bd2 {[%clk 0:02:57.3]}
8... Nbd7 {[%clk 0:02:47.2]} 9. O-O {[%clk 0:02:44]} 9... Ne4 {[%clk 0:02:40.8]}
10. cxd5 {[%clk 0:02:35.5]} 10... exd5 {[%clk 0:02:40.1]} 11. Rfd1 {[%clk
0:01:47.5]} 11... Kh8 {[%clk 0:02:31.9]} 12. Be1 {[%clk 0:01:42.4]} 12... Rf6
{[%clk 0:02:25.7]} 13. g3 {[%clk 0:01:22]} 13... Qe7 {[%clk 0:02:15.5]} 14. Nd2
{[%clk 0:01:11.8]} 14... b6 {[%clk 0:02:04.6]} 15. Nf1 {[%clk 0:01:06.1]} 15...
Bb7 {[%clk 0:02:02.9]} 16. f3 {[%clk 0:01:05]} 16... Ng5 {[%clk 0:02:00.8]} 17.
Kg2 {[%clk 0:00:40.1]} 17... Re8 {[%clk 0:01:52.7]} 18. Bf2 {[%clk 0:00:22.6]}
18... Qf7 {[%clk 0:01:50.6]} 19. e4 {[%clk 0:00:15.1]} 19... fxe4 {[%clk
0:01:48.3]} 20. f4 {[%clk 0:00:13.6]} 20... Ne6 {[%clk 0:01:43.4]} 21. Ne3
{[%clk 0:00:13.1]} 21... Bxf4 {[%clk 0:01:43.3]} 22. gxf4 {[%clk 0:00:09.3]}
22... Nxf4+ {[%clk 0:01:43.4]} 23. Kh1 {[%clk 0:00:07.6]} 23... Nxe2 {[%clk
0:01:42]} 24. Bh4 {[%clk 0:00:03.9]} 24... Rh6 {[%clk 0:01:28.8]} 25. Nxe2
{[%clk 0:00:04]} 25... Rxh4 {[%clk 0:01:26.3]} 26. Rf1 {[%clk 0:00:04.3]} 26...
Qh5 {[%clk 0:01:24.8]} 27. Rf2 {[%clk 0:00:04.6]} 27... Nf6 {[%clk 0:01:22.3]}
28. Raf1 {[%clk 0:00:04.3]} 28... c5 {[%clk 0:01:22.2]} 29. Nf5 {[%clk
0:00:01.2]} 29... Rh3 {[%clk 0:01:22.2]} 30. Nfg3 {[%clk 0:00:01.4]} 30... Qg6
{[%clk 0:01:17.2]} 31. Nf4 {[%clk 0:00:01.6]} 31... Qh6 {[%clk 0:01:12.2]} 32.
Nxh3 {[%clk 0:00:02.1]} 32... Qxh3 {[%clk 0:01:13.1]} 33. Rxf6 {[%clk
0:00:02.2]} 33... gxf6 {[%clk 0:01:12.1]} 34. Rxf6 {[%clk 0:00:03.1]} 34... e3
{[%clk 0:01:10.5]} 35. Qb5 {[%clk 0:00:01]} 35... Rg8 {[%clk 0:01:03.4]} 0-1

[Event "*** SCC Grand Prix: Titled Tuesday Blitz"]
[Site "Chess.com"]
[Date "2020.09.08"]
[Round "5"]
[White "AliKa2810"]
[Black "laboratorio25"]
[Result "1-0"]
[WhiteElo "2575"]
[BlackElo "2399"]
[TimeControl "180+1"]
[EndTime "10:55:49 PDT"]
[Termination "AliKa2810 won by resignation"]

1. d4 {[%clk 0:03:00.9]} 1... d5 {[%clk 0:02:59.4]} 2. c4 {[%clk 0:03:00.6]}
2... dxc4 {[%clk 0:02:59.2]} 3. e3 {[%clk 0:02:59.9]} 3... Nf6 {[%clk
0:02:58.8]} 4. Bxc4 {[%clk 0:02:59.6]} 4... e6 {[%clk 0:02:59.2]} 5. Nf3 {[%clk
0:02:59.7]} 5... a6 {[%clk 0:02:59.5]} 6. O-O {[%clk 0:02:59.8]} 6... b5 {[%clk
0:02:59.4]} 7. Bd3 {[%clk 0:02:57]} 7... Bb7 {[%clk 0:02:59.7]} 8. a4 {[%clk
0:02:56.3]} 8... b4 {[%clk 0:02:58.9]} 9. Nbd2 {[%clk 0:02:56.4]} 9... c5 {[%clk
0:02:58.1]} 10. e4 {[%clk 0:02:56.8]} 10... cxd4 {[%clk 0:02:54.3]} 11. e5
{[%clk 0:02:56.6]} 11... Nfd7 {[%clk 0:02:52.8]} 12. Nc4 {[%clk 0:02:51.2]}
12... Nc6 {[%clk 0:02:49.6]} 13. Bg5 {[%clk 0:02:50.5]} 13... Qc7 {[%clk
0:02:44.6]} 14. Rc1 {[%clk 0:02:50.2]} 14... Nb6 {[%clk 0:02:29.4]} 15. Be4
{[%clk 0:01:54.6]} 15... Nxc4 {[%clk 0:02:02]} 16. Rxc4 {[%clk 0:01:55.5]} 16...
Qb6 {[%clk 0:01:54.3]} 17. Qc2 {[%clk 0:01:46.1]} 17... Na5 {[%clk 0:01:16.6]}
18. Bxb7 {[%clk 0:01:45.5]} 18... Qxb7 {[%clk 0:01:04.8]} 19. Rc7 {[%clk
0:01:44.5]} 19... b3 {[%clk 0:01:04.9]} 20. Qc1 {[%clk 0:01:43]} 20... Qb8
{[%clk 0:00:56.7]} 21. Nxd4 {[%clk 0:01:39.7]} 21... Bb4 {[%clk 0:00:50.5]} 22.
Nxe6 {[%clk 0:01:16.1]} 22... fxe6 {[%clk 0:00:37.4]} 23. Rxg7 {[%clk
0:01:15.9]} 23... Rf8 {[%clk 0:00:32]} 24. Rd1 {[%clk 0:01:15]} 24... Rf7 {[%clk
0:00:19.3]} 25. Rg8+ {[%clk 0:00:59.2]} 25... Bf8 {[%clk 0:00:17.5]} 26. Rd6
{[%clk 0:00:40]} 26... Qa7 {[%clk 0:00:09]} 27. Qd2 {[%clk 0:00:35.4]} 27... Nb7
{[%clk 0:00:06.9]} 28. Rxe6+ {[%clk 0:00:34.1]} 1-0

[Event "*** SCC Grand Prix: Titled Tuesday Blitz"]
[Site "Chess.com"]
[Date "2020.09.08"]
[Round "5"]
[White "Matols"]
[Black "NiranjanNavalgund"]
[Result "0-1"]
[WhiteElo "2258"]
[BlackElo "2439"]
[TimeControl "180+1"]
[EndTime "10:55:50 PDT"]
[Termination "NiranjanNavalgund won by resignation"]

1. d4 {[%clk 0:03:00.9]} 1... Nf6 {[%clk 0:02:59.6]} 2. c4 {[%clk 0:03:00.3]}
2... Nc6 {[%clk 0:03:00.1]} 3. d5 {[%clk 0:02:58.8]} 3... Ne5 {[%clk 0:02:57.5]}
4. Nd2 {[%clk 0:02:52.6]} 4... e6 {[%clk 0:02:56.2]} 5. e4 {[%clk 0:02:48.8]}
5... Bb4 {[%clk 0:02:53.9]} 6. Qc2 {[%clk 0:02:37.7]} 6... exd5 {[%clk
0:02:51.1]} 7. cxd5 {[%clk 0:02:34.2]} 7... O-O {[%clk 0:02:50.1]} 8. Be2 {[%clk
0:02:27.7]} 8... d6 {[%clk 0:02:37.8]} 9. a3 {[%clk 0:02:21.5]} 9... Bxd2+
{[%clk 0:02:36.6]} 10. Bxd2 {[%clk 0:02:20.9]} 10... Re8 {[%clk 0:02:37.5]} 11.
O-O-O {[%clk 0:02:11.4]} 11... Bd7 {[%clk 0:02:29.1]} 12. h3 {[%clk 0:02:05.5]}
12... Ng6 {[%clk 0:02:21]} 13. Bd3 {[%clk 0:01:54.4]} 13... c6 {[%clk
0:02:21.9]} 14. dxc6 {[%clk 0:01:44.6]} 14... Bxc6 {[%clk 0:02:11.5]} 15. f3
{[%clk 0:01:39.7]} 15... d5 {[%clk 0:02:09.3]} 16. exd5 {[%clk 0:01:21.9]} 16...
Qxd5 {[%clk 0:02:10.2]} 17. Bc4 {[%clk 0:01:15.1]} 17... Qe5 {[%clk 0:01:56.9]}
18. Ne2 {[%clk 0:01:06.4]} 18... Rac8 {[%clk 0:01:52.2]} 19. Bc3 {[%clk
0:00:52.7]} 19... Qg5+ {[%clk 0:01:50.6]} 20. Kb1 {[%clk 0:00:49]} 20... Bb5
{[%clk 0:01:50.9]} 21. Bxb5 {[%clk 0:00:44.6]} 21... Qxb5 {[%clk 0:01:51.8]} 22.
Nd4 {[%clk 0:00:44.1]} 22... Qb6 {[%clk 0:01:52.1]} 23. Nf5 {[%clk 0:00:30.1]}
23... Nd5 {[%clk 0:01:51.8]} 24. Rxd5 {[%clk 0:00:26.5]} 24... Nf4 {[%clk
0:01:16.3]} 25. Rd7 {[%clk 0:00:25.2]} 25... Re2 {[%clk 0:01:14.7]} 26. Qa4
{[%clk 0:00:18.8]} 26... Rxc3 {[%clk 0:01:07.4]} 27. Qb4 {[%clk 0:00:18.1]}
27... Qxb4 {[%clk 0:01:01]} 28. Rd8+ {[%clk 0:00:18.1]} 28... Qf8 {[%clk
0:01:00.9]} 29. Rxf8+ {[%clk 0:00:18.3]} 29... Kxf8 {[%clk 0:01:01.8]} 30. bxc3
{[%clk 0:00:18.5]} 30... Nd5 {[%clk 0:01:00.8]} 31. Kc1 {[%clk 0:00:14.9]} 31...
Nxc3 {[%clk 0:01:00.9]} 32. Nd4 {[%clk 0:00:14.2]} 32... Rxg2 {[%clk 0:01:00.5]}
33. Re1 {[%clk 0:00:12.6]} 33... Ra2 {[%clk 0:00:58.7]} 34. Re3 {[%clk
0:00:09.4]} 34... Nd5 {[%clk 0:00:57.6]} 35. Re5 {[%clk 0:00:08.6]} 35... Nf4
{[%clk 0:00:57.3]} 36. Nf5 {[%clk 0:00:07.3]} 36... Nd3+ {[%clk 0:00:57.3]} 0-1

[Event "*** SCC Grand Prix: Titled Tuesday Blitz"]
[Site "Chess.com"]
[Date "2020.09.08"]
[Round "5"]
[White "kngopal"]
[Black "Justinz"]
[Result "0-1"]
[WhiteElo "2228"]
[BlackElo "2400"]
[TimeControl "180+1"]
[EndTime "10:55:54 PDT"]
[Termination "Justinz won by resignation"]

1. e4 {[%clk 0:03:00.9]} 1... c5 {[%clk 0:02:59.4]} 2. c4 {[%clk 0:02:58.1]}
2... d6 {[%clk 0:02:59]} 3. Nc3 {[%clk 0:02:56.9]} 3... Nf6 {[%clk 0:02:58.9]}
4. g3 {[%clk 0:02:57.3]} 4... Nc6 {[%clk 0:02:58.9]} 5. Bg2 {[%clk 0:02:57.3]}
5... g6 {[%clk 0:02:59.3]} 6. Nge2 {[%clk 0:02:56.9]} 6... Bg7 {[%clk
0:02:59.7]} 7. O-O {[%clk 0:02:54.8]} 7... O-O {[%clk 0:03:00.1]} 8. d3 {[%clk
0:02:42.6]} 8... a6 {[%clk 0:02:57.7]} 9. Rb1 {[%clk 0:02:40.9]} 9... Rb8 {[%clk
0:02:57.5]} 10. a4 {[%clk 0:02:39.2]} 10... Ne8 {[%clk 0:02:55]} 11. h3 {[%clk
0:02:33]} 11... Nc7 {[%clk 0:02:55.3]} 12. Kh2 {[%clk 0:02:30.5]} 12... b5
{[%clk 0:02:53.7]} 13. axb5 {[%clk 0:02:29.4]} 13... axb5 {[%clk 0:02:54.6]} 14.
b3 {[%clk 0:02:17.5]} 14... b4 {[%clk 0:02:46.6]} 15. Nd5 {[%clk 0:02:14.9]}
15... Ne6 {[%clk 0:02:46.9]} 16. Bb2 {[%clk 0:02:12.7]} 16... Ned4 {[%clk
0:02:46.7]} 17. Nxd4 {[%clk 0:02:10.5]} 17... Nxd4 {[%clk 0:02:47.6]} 18. f4
{[%clk 0:02:06.6]} 18... e6 {[%clk 0:02:43.5]} 19. Ne3 {[%clk 0:02:06.2]} 19...
f5 {[%clk 0:02:41.6]} 20. exf5 {[%clk 0:02:02.3]} 20... gxf5 {[%clk 0:02:41]}
21. Bxd4 {[%clk 0:01:58.8]} 21... Bxd4 {[%clk 0:02:38.5]} 22. Nc2 {[%clk
0:01:58.7]} 22... Bc3 {[%clk 0:02:38.3]} 23. d4 {[%clk 0:01:57.2]} 23... Qf6
{[%clk 0:02:22.3]} 24. dxc5 {[%clk 0:01:49.8]} 24... dxc5 {[%clk 0:02:22.2]} 25.
Qd6 {[%clk 0:01:32.3]} 25... Bb7 {[%clk 0:02:12]} 26. Qxc5 {[%clk 0:01:31.4]}
26... Bxg2 {[%clk 0:02:09.1]} 27. Kxg2 {[%clk 0:01:31]} 27... Ra8 {[%clk
0:02:02.8]} 28. Rf2 {[%clk 0:01:30]} 28... Rfd8 {[%clk 0:01:55.6]} 29. Rbf1
{[%clk 0:01:22.8]} 29... Qg7 {[%clk 0:01:51]} 30. Qc6 {[%clk 0:01:12.8]} 30...
Qe7 {[%clk 0:01:36.9]} 31. Re2 {[%clk 0:01:11.5]} 31... Ra2 {[%clk 0:01:36.5]}
32. Rff2 {[%clk 0:01:09]} 32... Rd6 {[%clk 0:01:34.4]} 33. Qc8+ {[%clk
0:01:06.5]} 33... Kf7 {[%clk 0:01:33]} 34. Ne3 {[%clk 0:01:06.3]} 34... Rd8
{[%clk 0:01:16.5]} 35. Qc6 {[%clk 0:01:03.6]} 35... Rxe2 {[%clk 0:01:13.5]} 36.
Rxe2 {[%clk 0:01:03]} 36... Rd6 {[%clk 0:01:13.1]} 37. Qf3 {[%clk 0:00:59.3]}
37... Qd7 {[%clk 0:01:10.5]} 38. Qh5+ {[%clk 0:00:58.3]} 38... Kg7 {[%clk
0:01:09.8]} 39. Qg5+ {[%clk 0:00:57.7]} 39... Kh8 {[%clk 0:01:09.8]} 40. Qf6+
{[%clk 0:00:56]} 40... Bxf6 {[%clk 0:01:09.1]} 41. g4 {[%clk 0:00:30.5]} 41...
Qb7+ {[%clk 0:01:05.8]} 42. Kh2 {[%clk 0:00:24.1]} 42... Qe4 {[%clk 0:01:02.4]}
0-1

[Event "*** SCC Grand Prix: Titled Tuesday Blitz"]
[Site "Chess.com"]
[Date "2020.09.08"]
[Round "5"]
[White "KaterynaLagno"]
[Black "ViktoriyaTarasova"]
[Result "1-0"]
[WhiteElo "2694"]
[BlackElo "2232"]
[TimeControl "180+1"]
[EndTime "10:55:55 PDT"]
[Termination "KaterynaLagno won on time"]

1. e4 {[%clk 0:03:00.9]} 1... c5 {[%clk 0:02:58.5]} 2. Nf3 {[%clk 0:03:00.4]}
2... d6 {[%clk 0:02:58.5]} 3. Bb5+ {[%clk 0:03:00.3]} 3... Nd7 {[%clk 0:02:56]}
4. Ba4 {[%clk 0:02:59.4]} 4... e5 {[%clk 0:02:54.3]} 5. O-O {[%clk 0:02:55.3]}
5... Nf6 {[%clk 0:02:53.2]} 6. Re1 {[%clk 0:02:54.5]} 6... Be7 {[%clk
0:02:53.1]} 7. c3 {[%clk 0:02:54.6]} 7... O-O {[%clk 0:02:53]} 8. d4 {[%clk
0:02:54.6]} 8... Qc7 {[%clk 0:02:52.5]} 9. Na3 {[%clk 0:02:52]} 9... a6 {[%clk
0:02:51.4]} 10. Bxd7 {[%clk 0:02:45.7]} 10... Nxd7 {[%clk 0:02:26.1]} 11. dxe5
{[%clk 0:02:42.1]} 11... Nxe5 {[%clk 0:02:20.4]} 12. h3 {[%clk 0:02:36]} 12...
b5 {[%clk 0:02:15.5]} 13. Nc2 {[%clk 0:02:35.1]} 13... Bb7 {[%clk 0:02:14.5]}
14. Nxe5 {[%clk 0:02:32]} 14... dxe5 {[%clk 0:02:14]} 15. Qg4 {[%clk 0:02:32.7]}
15... Rad8 {[%clk 0:01:58.8]} 16. Bh6 {[%clk 0:02:29.1]} 16... Bf6 {[%clk
0:01:58.6]} 17. Ne3 {[%clk 0:02:27]} 17... Kh8 {[%clk 0:01:51]} 18. Bg5 {[%clk
0:02:02.6]} 18... Bxg5 {[%clk 0:01:47.1]} 19. Qxg5 {[%clk 0:02:03.5]} 19... Bxe4
{[%clk 0:01:40.3]} 20. Rad1 {[%clk 0:01:59.4]} 20... f6 {[%clk 0:01:29.6]} 21.
Qg4 {[%clk 0:01:59.5]} 21... Bg6 {[%clk 0:01:25.1]} 22. Qe6 {[%clk 0:01:58.8]}
22... a5 {[%clk 0:01:09]} 23. Qa6 {[%clk 0:01:49.3]} 23... b4 {[%clk 0:00:57.3]}
24. Nd5 {[%clk 0:01:48.2]} 24... Qf7 {[%clk 0:00:33.6]} 25. c4 {[%clk
0:01:47.7]} 25... Ra8 {[%clk 0:00:34.2]} 26. Qb6 {[%clk 0:01:46.4]} 26... Rfc8
{[%clk 0:00:26.9]} 27. Ne3 {[%clk 0:01:36.2]} 27... Qe7 {[%clk 0:00:20.7]} 28.
Rd2 {[%clk 0:01:27.4]} 28... Rcb8 {[%clk 0:00:16]} 29. Qc6 {[%clk 0:01:25.5]}
29... Rc8 {[%clk 0:00:15.5]} 30. Qf3 {[%clk 0:01:24.5]} 30... Qe6 {[%clk
0:00:10.5]} 31. Red1 {[%clk 0:01:23.1]} 31... a4 {[%clk 0:00:09.8]} 32. Rd6
{[%clk 0:01:20.8]} 32... Qe8 {[%clk 0:00:09.4]} 33. Qd5 {[%clk 0:01:14.2]} 33...
Bf7 {[%clk 0:00:07.3]} 34. Qb7 {[%clk 0:01:13.9]} 34... Rab8 {[%clk 0:00:05.2]}
35. Qe4 {[%clk 0:01:08.1]} 35... Rd8 {[%clk 0:00:05.1]} 36. Nf5 {[%clk
0:01:03.2]} 36... Bg6 {[%clk 0:00:05.1]} 37. Qd5 {[%clk 0:01:00.9]} 37... Bxf5
{[%clk 0:00:05.1]} 38. Rxd8 {[%clk 0:01:00.3]} 1-0